[Event "Live Chess"]
[Site "Chess.com"]
[Date "2023.05.21"]
[Round "-"]
[White "TheAuditer"]
[Black "friarnator"]
[Result "0-1"]
[WhiteElo "1398"]
[BlackElo "2007"]
[TimeControl "300"]
[EndTime "4:53:41 PDT"]
[Termination "friarnator won by checkmate"]

1. d4 {[%clk 0:04:56.9]} 1... Nf6 {[%clk 0:04:58.9]} 2. Nf3 {[%clk 0:04:55.1]}
2... g6 {[%clk 0:04:57.4]} 3. c4 {[%clk 0:04:51.9]} 3... Bg7 {[%clk 0:04:56.8]}
4. Nc3 {[%clk 0:04:48.8]} 4... O-O {[%clk 0:04:56.5]} 5. e4 {[%clk 0:04:43.3]}
5... d6 {[%clk 0:04:56.1]} 6. Bd3 {[%clk 0:04:37.3]} 6... e5 {[%clk 0:04:55.4]}
7. d5 {[%clk 0:04:35.4]} 7... a5 {[%clk 0:04:53.8]} 8. a4 {[%clk 0:04:32.5]}
8... Na6 {[%clk 0:04:53]} 9. O-O {[%clk 0:04:29.7]} 9... Nb4 {[%clk 0:04:42]}
10. Bb1 {[%clk 0:04:24.3]} 10... Nd7 {[%clk 0:04:39.5]} 11. Bd2 {[%clk
0:04:18.4]} 11... Nc5 {[%clk 0:04:37.2]} 12. Nb5 {[%clk 0:04:09.1]} 12... Nba6
{[%clk 0:04:32.5]} 13. Bxa5 {[%clk 0:04:01]} 13... b6 {[%clk 0:04:31.5]} 14. Bc3
{[%clk 0:03:52.5]} 14... f5 {[%clk 0:04:30.6]} 15. Nd2 {[%clk 0:03:31.2]} 15...
f4 {[%clk 0:04:25.6]} 16. Nf3 {[%clk 0:03:24.2]} 16... g5 {[%clk 0:04:23.3]} 17.
h3 {[%clk 0:03:15.3]} 17... h5 {[%clk 0:04:21.8]} 18. Bd3 {[%clk 0:03:09.3]}
18... g4 {[%clk 0:04:20.1]} 19. hxg4 {[%clk 0:03:05.9]} 19... hxg4 {[%clk
0:04:18.4]} 20. Nh2 {[%clk 0:02:51.3]} 20... Qh4 {[%clk 0:04:10.5]} 21. f3
{[%clk 0:02:25.1]} 21... g3 {[%clk 0:03:56.9]} 22. Ng4 {[%clk 0:02:10.6]} 22...
Bxg4 {[%clk 0:03:55.4]} 23. fxg4 {[%clk 0:02:08.1]} 23... Qh2# {[%clk
0:03:53.8]} 0-1

[Event "Live Chess"]
[Site "Chess.com"]
[Date "2023.05.21"]
[Round "-"]
[White "gmnorfolk"]
[Black "domrobson"]
[Result "1-0"]
[WhiteElo "2127"]
[BlackElo "1710"]
[TimeControl "300"]
[EndTime "4:53:42 PDT"]
[Termination "gmnorfolk won by resignation"]

1. d4 {[%clk 0:04:58.7]} 1... Nf6 {[%clk 0:04:58.6]} 2. c4 {[%clk 0:04:52.3]}
2... e6 {[%clk 0:04:57]} 3. Nc3 {[%clk 0:04:51.8]} 3... d5 {[%clk 0:04:54.8]} 4.
cxd5 {[%clk 0:04:50.6]} 4... Nxd5 {[%clk 0:04:50]} 5. e4 {[%clk 0:04:48.4]} 5...
Nb6 {[%clk 0:04:46.6]} 6. Be3 {[%clk 0:04:45.4]} 6... Bb4 {[%clk 0:04:44.7]} 7.
Nf3 {[%clk 0:04:43.4]} 7... O-O {[%clk 0:04:43.4]} 8. Be2 {[%clk 0:04:42.2]}
8... Na6 {[%clk 0:04:39.4]} 9. O-O {[%clk 0:04:40.3]} 9... c5 {[%clk 0:04:36.9]}
10. a3 {[%clk 0:04:39.8]} 10... cxd4 {[%clk 0:04:35.4]} 11. Bxd4 {[%clk
0:04:36.3]} 11... Bc5 {[%clk 0:04:32.5]} 12. b4 {[%clk 0:04:34.9]} 12... Bxd4
{[%clk 0:04:30.3]} 13. Qxd4 {[%clk 0:04:34.2]} 13... Qxd4 {[%clk 0:04:29]} 14.
Nxd4 {[%clk 0:04:33.7]} 14... Bd7 {[%clk 0:04:25.4]} 15. Rfd1 {[%clk 0:04:23.8]}
15... Rac8 {[%clk 0:04:20.3]} 16. Ncb5 {[%clk 0:04:21.5]} 16... Bxb5 {[%clk
0:04:18.7]} 17. Nxb5 {[%clk 0:04:20.5]} 17... Rc2 {[%clk 0:04:10.4]} 18. Bd3
{[%clk 0:04:17.6]} 18... Rb2 {[%clk 0:04:05.4]} 19. Nxa7 {[%clk 0:04:14.2]}
19... Na4 {[%clk 0:04:03.9]} 20. Nb5 {[%clk 0:04:10.2]} 20... Rc8 {[%clk
0:03:58.4]} 21. Rac1 {[%clk 0:04:09.1]} 21... Rc6 {[%clk 0:03:50.7]} 22. Bc2
{[%clk 0:03:59.9]} 22... Kf8 {[%clk 0:03:43.6]} 23. Bxa4 {[%clk 0:03:56.6]} 1-0

[Event "Live Chess"]
[Site "Chess.com"]
[Date "2023.05.21"]
[Round "-"]
[White "KeithArkell"]
[Black "Vitalii18a"]
[Result "1-0"]
[WhiteElo "2488"]
[BlackElo "1136"]
[TimeControl "300"]
[EndTime "4:53:47 PDT"]
[Termination "KeithArkell won by checkmate"]

1. d4 {[%clk 0:04:57.7]} 1... d5 {[%clk 0:04:56.9]} 2. Nf3 {[%clk 0:04:56.4]}
2... e6 {[%clk 0:04:53.4]} 3. c4 {[%clk 0:04:55.5]} 3... c5 {[%clk 0:04:52]} 4.
cxd5 {[%clk 0:04:54.5]} 4... Qxd5 {[%clk 0:04:48.3]} 5. Nc3 {[%clk 0:04:53.4]}
5... Qd8 {[%clk 0:04:43.6]} 6. d5 {[%clk 0:04:52.7]} 6... Bd6 {[%clk 0:04:32.4]}
7. dxe6 {[%clk 0:04:50.7]} 7... Bxe6 {[%clk 0:04:30.3]} 8. Ne4 {[%clk 0:04:49]}
8... Bc7 {[%clk 0:04:25.1]} 9. Qxd8+ {[%clk 0:04:48]} 9... Bxd8 {[%clk
0:04:23.6]} 10. Nxc5 {[%clk 0:04:46.2]} 10... Nf6 {[%clk 0:04:15.3]} 11. Nxe6
{[%clk 0:04:44.2]} 11... fxe6 {[%clk 0:04:13.6]} 12. Bd2 {[%clk 0:04:43.1]}
12... O-O {[%clk 0:04:12.1]} 13. e3 {[%clk 0:04:42.1]} 13... Nc6 {[%clk
0:04:09.6]} 14. Bc4 {[%clk 0:04:40.9]} 14... Ne4 {[%clk 0:04:03.3]} 15. Bxe6+
{[%clk 0:04:39]} 15... Kh8 {[%clk 0:04:02]} 16. Ke2 {[%clk 0:04:33.6]} 16... Nc5
{[%clk 0:03:35.2]} 17. Bd5 {[%clk 0:04:25.7]} 17... Bf6 {[%clk 0:03:29.8]} 18.
Bxc6 {[%clk 0:04:23.8]} 18... bxc6 {[%clk 0:03:28.2]} 19. Rac1 {[%clk
0:04:22.6]} 19... Na4 {[%clk 0:03:13]} 20. b3 {[%clk 0:04:21.4]} 20... Nb6
{[%clk 0:02:53]} 21. Rxc6 {[%clk 0:04:20.3]} 21... h6 {[%clk 0:02:47.5]} 22.
Rhc1 {[%clk 0:04:18.6]} 22... Rf7 {[%clk 0:02:44.9]} 23. Bc3 {[%clk 0:04:17.3]}
23... Bxc3 {[%clk 0:02:38.8]} 24. R1xc3 {[%clk 0:04:17.2]} 24... Nd5 {[%clk
0:02:35.9]} 25. Rc8+ {[%clk 0:04:15.6]} 25... Rxc8 {[%clk 0:02:33.1]} 26. Rxc8+
{[%clk 0:04:15.5]} 26... Kh7 {[%clk 0:02:32.5]} 27. Nd4 {[%clk 0:04:12.4]} 27...
Nb6 {[%clk 0:02:22]} 28. Rc5 {[%clk 0:04:08.9]} 28... Nd7 {[%clk 0:02:19]} 29.
Rc7 {[%clk 0:03:36.7]} 29... Kg6 {[%clk 0:02:13.8]} 30. Nc6 {[%clk 0:03:32.4]}
30... Nb6 {[%clk 0:02:07.3]} 31. Ne5+ {[%clk 0:03:30.2]} 31... Kf6 {[%clk
0:02:01]} 32. Rxf7+ {[%clk 0:03:29]} 32... Kxe5 {[%clk 0:01:59.9]} 33. Rxg7
{[%clk 0:03:27.9]} 33... Nd5 {[%clk 0:01:56.3]} 34. Rxa7 {[%clk 0:03:26.5]}
34... Nc3+ {[%clk 0:01:55]} 35. Kd3 {[%clk 0:03:25]} 35... Nb1 {[%clk
0:01:53.2]} 36. Ra5+ {[%clk 0:03:23.3]} 36... Kd6 {[%clk 0:01:49.8]} 37. a3
{[%clk 0:03:22.6]} 37... Kc6 {[%clk 0:01:47.5]} 38. Kc2 {[%clk 0:03:21.1]} 38...
Nxa3+ {[%clk 0:01:44.8]} 39. Rxa3 {[%clk 0:03:19.8]} 39... h5 {[%clk 0:01:42.4]}
40. Ra5 {[%clk 0:03:18.1]} 40... Kb6 {[%clk 0:01:40.8]} 41. Rxh5 {[%clk
0:03:17]} 41... Kc6 {[%clk 0:01:39.4]} 42. Kd3 {[%clk 0:03:16.2]} 42... Kd6
{[%clk 0:01:38.3]} 43. Kd4 {[%clk 0:03:15.6]} 43... Ke6 {[%clk 0:01:37.1]} 44.
g4 {[%clk 0:03:13.9]} 44... Kf6 {[%clk 0:01:36]} 45. h4 {[%clk 0:03:12.9]} 45...
Kg6 {[%clk 0:01:34.7]} 46. b4 {[%clk 0:03:11.7]} 46... Kf6 {[%clk 0:01:33.3]}
47. Rh6+ {[%clk 0:03:11.1]} 47... Ke7 {[%clk 0:01:31.1]} 48. g5 {[%clk
0:03:09.6]} 48... Kf7 {[%clk 0:01:30.1]} 49. h5 {[%clk 0:03:08.1]} 49... Kg7
{[%clk 0:01:29]} 50. b5 {[%clk 0:03:06.5]} 50... Kf7 {[%clk 0:01:27.6]} 51. Rh7+
{[%clk 0:03:05.5]} 51... Kg8 {[%clk 0:01:26.3]} 52. g6 {[%clk 0:03:04.6]} 52...
Kf8 {[%clk 0:01:25.2]} 53. b6 {[%clk 0:03:03.3]} 53... Ke8 {[%clk 0:01:23.8]}
54. b7 {[%clk 0:03:02.6]} 54... Kd8 {[%clk 0:01:21]} 55. b8=Q# {[%clk 0:03:02]}
1-0

[Event "Live Chess"]
[Site "Chess.com"]
[Date "2023.05.21"]
[Round "-"]
[White "Duke_of_Bebington"]
[Black "JohanKjeldahl"]
[Result "0-1"]
[WhiteElo "1574"]
[BlackElo "1874"]
[TimeControl "300"]
[EndTime "4:53:55 PDT"]
[Termination "JohanKjeldahl won by resignation"]

1. e4 {[%clk 0:04:58.8]} 1... c5 {[%clk 0:04:58.3]} 2. Nh3 {[%clk 0:04:58.1]}
2... Nc6 {[%clk 0:04:55.9]} 3. f4 {[%clk 0:04:56.4]} 3... d6 {[%clk 0:04:54.1]}
4. Nf2 {[%clk 0:04:55]} 4... Nf6 {[%clk 0:04:51.7]} 5. d3 {[%clk 0:04:52.9]}
5... g6 {[%clk 0:04:50.6]} 6. g3 {[%clk 0:04:52]} 6... Bg7 {[%clk 0:04:49.7]} 7.
Bg2 {[%clk 0:04:51.4]} 7... O-O {[%clk 0:04:48.6]} 8. O-O {[%clk 0:04:50.9]}
8... a6 {[%clk 0:04:41.2]} 9. b3 {[%clk 0:04:49.9]} 9... Nxe4 {[%clk 0:04:33.9]}
10. Nxe4 {[%clk 0:04:35.4]} 10... Bxa1 {[%clk 0:04:32]} 11. Nbc3 {[%clk
0:04:33.9]} 11... f5 {[%clk 0:04:28.3]} 0-1

[Event "Live Chess"]
[Site "Chess.com"]
[Date "2023.05.21"]
[Round "-"]
[White "defenderalist"]
[Black "seasidecastle27"]
[Result "0-1"]
[WhiteElo "1671"]
[BlackElo "1860"]
[TimeControl "300"]
[EndTime "4:53:56 PDT"]
[Termination "seasidecastle27 won by resignation"]

1. e4 {[%clk 0:04:54.5]} 1... d6 {[%clk 0:04:58.9]} 2. g3 {[%clk 0:04:52.8]}
2... e5 {[%clk 0:04:56.6]} 3. Bg2 {[%clk 0:04:52.1]} 3... Nf6 {[%clk 0:04:55]}
4. b3 {[%clk 0:04:50.1]} 4... Be7 {[%clk 0:04:53.9]} 5. Bb2 {[%clk 0:04:48.9]}
5... O-O {[%clk 0:04:52.7]} 6. d3 {[%clk 0:04:47.7]} 6... c5 {[%clk 0:04:51.3]}
7. Nd2 {[%clk 0:04:46]} 7... Nc6 {[%clk 0:04:50.2]} 8. Ne2 {[%clk 0:04:42.4]}
8... Nd4 {[%clk 0:04:46.2]} 9. Nxd4 {[%clk 0:04:40.3]} 9... cxd4 {[%clk
0:04:44.1]} 10. f4 {[%clk 0:04:36.1]} 10... exf4 {[%clk 0:04:41.5]} 11. gxf4
{[%clk 0:04:34]} 11... Ng4 {[%clk 0:04:40.3]} 12. f5 {[%clk 0:04:28.5]} 12...
Ne3 {[%clk 0:04:37.8]} 13. Qe2 {[%clk 0:04:27.5]} 13... Bh4+ {[%clk 0:04:27.4]}
0-1

[Event "Live Chess"]
[Site "Chess.com"]
[Date "2023.05.21"]
[Round "-"]
[White "OleksiyJr1"]
[Black "howitzer14"]
[Result "0-1"]
[WhiteElo "1005"]
[BlackElo "2890"]
[TimeControl "300"]
[EndTime "4:54:02 PDT"]
[Termination "howitzer14 won by checkmate"]

1. e4 {[%clk 0:04:51.8]} 1... a5 {[%clk 0:04:58]} 2. c4 {[%clk 0:04:43.9]} 2...
e6 {[%clk 0:04:57.9]} 3. Nf3 {[%clk 0:04:41.9]} 3... d5 {[%clk 0:04:55.8]} 4.
cxd5 {[%clk 0:04:40.5]} 4... exd5 {[%clk 0:04:55.7]} 5. exd5 {[%clk 0:04:39.7]}
5... Nf6 {[%clk 0:04:55.2]} 6. Nc3 {[%clk 0:04:39]} 6... Nxd5 {[%clk 0:04:54.4]}
7. Nxd5 {[%clk 0:04:37.8]} 7... Qxd5 {[%clk 0:04:53.5]} 8. d3 {[%clk 0:04:34.2]}
8... Nc6 {[%clk 0:04:51.4]} 9. Bf4 {[%clk 0:04:31.6]} 9... Bb4+ {[%clk 0:04:50]}
10. Bd2 {[%clk 0:04:28.7]} 10... Bg4 {[%clk 0:04:47.7]} 11. Bxb4 {[%clk
0:04:07.2]} 11... Bxf3 {[%clk 0:04:46]} 12. Qxf3 {[%clk 0:04:03.9]} 12... Qxf3
{[%clk 0:04:42.2]} 13. gxf3 {[%clk 0:04:02.2]} 13... axb4 {[%clk 0:04:41.9]} 14.
Bg2 {[%clk 0:03:58]} 14... Nd4 {[%clk 0:04:40.6]} 15. O-O-O {[%clk 0:03:53.5]}
15... Rxa2 {[%clk 0:04:39]} 16. Rhe1+ {[%clk 0:03:51.6]} 16... Kd7 {[%clk
0:04:38.4]} 17. Re4 {[%clk 0:03:38.9]} 17... c5 {[%clk 0:04:37.5]} 18. Kb1
{[%clk 0:03:36.3]} 18... Rha8 {[%clk 0:04:36.2]} 19. h3 {[%clk 0:03:33.1]} 19...
Ra1# {[%clk 0:04:35.2]} 0-1

[Event "Live Chess"]
[Site "Chess.com"]
[Date "2023.05.21"]
[Round "-"]
[White "raminguy"]
[Black "LL220284LL"]
[Result "0-1"]
[WhiteElo "1950"]
[BlackElo "2328"]
[TimeControl "300"]
[EndTime "4:54:15 PDT"]
[Termination "LL220284LL won by resignation"]

1. d4 {[%clk 0:04:59.9]} 1... Nf6 {[%clk 0:04:58.4]} 2. Nc3 {[%clk 0:04:59.8]}
2... d5 {[%clk 0:04:57.2]} 3. Bf4 {[%clk 0:04:59]} 3... c5 {[%clk 0:04:56.6]} 4.
e4 {[%clk 0:04:57.5]} 4... Nxe4 {[%clk 0:04:55.2]} 5. Nb5 {[%clk 0:04:56]} 5...
Na6 {[%clk 0:04:30.7]} 6. f3 {[%clk 0:04:54.8]} 6... Nf6 {[%clk 0:04:29.2]} 7.
dxc5 {[%clk 0:04:53.7]} 7... e6 {[%clk 0:04:27.9]} 8. b4 {[%clk 0:04:52.2]} 8...
Be7 {[%clk 0:04:22.6]} 9. a3 {[%clk 0:04:37.4]} 9... O-O {[%clk 0:04:20.5]} 10.
Bd3 {[%clk 0:04:24.7]} 10... Nd7 {[%clk 0:04:18.2]} 11. Nh3 {[%clk 0:04:04]}
11... Bf6 {[%clk 0:04:15]} 12. Rb1 {[%clk 0:03:51.5]} 12... e5 {[%clk 0:04:14]}
13. Bg3 {[%clk 0:03:40.9]} 13... e4 {[%clk 0:04:13.1]} 14. fxe4 {[%clk
0:03:36.2]} 14... dxe4 {[%clk 0:04:12.2]} 15. Bc4 {[%clk 0:03:29.3]} 15... Ne5
{[%clk 0:04:08.6]} 16. Bxe5 {[%clk 0:03:26.6]} 16... Bxe5 {[%clk 0:04:04.9]} 17.
Qxd8 {[%clk 0:03:23.7]} 17... Rxd8 {[%clk 0:04:02.9]} 18. O-O {[%clk 0:03:13.9]}
18... Bxh3 {[%clk 0:03:57.1]} 19. Bxf7+ {[%clk 0:03:08.1]} 19... Kh8 {[%clk
0:03:55.7]} 20. gxh3 {[%clk 0:03:06.8]} 20... Rd2 {[%clk 0:03:55.1]} 21. Rf2
{[%clk 0:03:00]} 21... Rxf2 {[%clk 0:03:51.5]} 22. Kxf2 {[%clk 0:02:58.8]} 22...
Rf8 {[%clk 0:03:51]} 23. Rf1 {[%clk 0:02:54.7]} 23... Rxf7+ {[%clk 0:03:49.3]}
24. Ke2 {[%clk 0:02:54.4]} 24... Rxf1 {[%clk 0:03:48.6]} 25. Kxf1 {[%clk
0:02:54.3]} 25... Bb8 {[%clk 0:03:40.5]} 26. c4 {[%clk 0:02:50.6]} 26... Nc7
{[%clk 0:03:39.5]} 27. Nc3 {[%clk 0:02:49.2]} 27... Ne6 {[%clk 0:03:35.9]} 28.
Nxe4 {[%clk 0:02:46.8]} 28... Bxh2 {[%clk 0:03:35.5]} 29. Nd6 {[%clk 0:02:42.8]}
29... Bxd6 {[%clk 0:03:34]} 30. cxd6 {[%clk 0:02:41.6]} 30... Kg8 {[%clk
0:03:33.1]} 31. c5 {[%clk 0:02:39.9]} 31... Kf7 {[%clk 0:03:32.6]} 32. Ke2
{[%clk 0:02:36]} 32... Ke8 {[%clk 0:03:28.8]} 33. Ke3 {[%clk 0:02:34.6]} 33...
Kd7 {[%clk 0:03:28.2]} 34. Ke4 {[%clk 0:02:31.5]} 34... b6 {[%clk 0:03:23.4]}
35. Kd5 {[%clk 0:02:28.7]} 35... bxc5 {[%clk 0:03:20.4]} 36. bxc5 {[%clk
0:02:27.4]} 36... Nd8 {[%clk 0:03:20.1]} 37. a4 {[%clk 0:02:21.7]} 37... g5
{[%clk 0:03:18.9]} 38. a5 {[%clk 0:02:16.8]} 38... a6 {[%clk 0:03:18.2]} 39. Kc4
{[%clk 0:02:14.9]} 39... Nc6 {[%clk 0:03:16.8]} 40. Kd5 {[%clk 0:02:14.2]} 40...
Nxa5 {[%clk 0:03:15.6]} 41. Kd4 {[%clk 0:02:11]} 41... h5 {[%clk 0:03:14]} 42.
Kd5 {[%clk 0:02:09.1]} 42... g4 {[%clk 0:03:12.7]} 0-1

[Event "Live Chess"]
[Site "Chess.com"]
[Date "2023.05.21"]
[Round "-"]
[White "viktorskliarov"]
[Black "luckywookie"]
[Result "1-0"]
[WhiteElo "2656"]
[BlackElo "771"]
[TimeControl "300"]
[EndTime "4:54:36 PDT"]
[Termination "viktorskliarov won by checkmate"]

1. e4 {[%clk 0:04:57]} 1... c6 {[%clk 0:04:58.9]} 2. d4 {[%clk 0:04:54.7]} 2...
d5 {[%clk 0:04:57.9]} 3. e5 {[%clk 0:04:53.9]} 3... e6 {[%clk 0:04:54.8]} 4. Nf3
{[%clk 0:04:53.1]} 4... Nd7 {[%clk 0:04:52.1]} 5. Bd3 {[%clk 0:04:51]} 5... Ne7
{[%clk 0:04:45.3]} 6. O-O {[%clk 0:04:47]} 6... c5 {[%clk 0:04:40.7]} 7. c3
{[%clk 0:04:43]} 7... c4 {[%clk 0:04:38.8]} 8. Bc2 {[%clk 0:04:41.5]} 8... Nf5
{[%clk 0:04:31.3]} 9. Nbd2 {[%clk 0:04:34.8]} 9... Be7 {[%clk 0:04:27.2]} 10.
Re1 {[%clk 0:04:32.2]} 10... O-O {[%clk 0:04:25.6]} 11. Nf1 {[%clk 0:04:29.3]}
11... h6 {[%clk 0:04:20.7]} 12. Ng3 {[%clk 0:04:23.6]} 12... Nxg3 {[%clk
0:04:18.7]} 13. hxg3 {[%clk 0:04:22.2]} 13... Bg5 {[%clk 0:03:52.1]} 14. Nxg5
{[%clk 0:04:15.3]} 14... hxg5 {[%clk 0:03:50.1]} 15. Qh5 {[%clk 0:04:13.7]}
15... g6 {[%clk 0:03:42.5]} 16. Qh6 {[%clk 0:03:54.2]} 16... f6 {[%clk
0:03:38.3]} 17. Qxg6+ {[%clk 0:03:52.3]} 17... Kh8 {[%clk 0:03:35]} 18. Qh7#
{[%clk 0:03:52.2]} 1-0

[Event "Live Chess"]
[Site "Chess.com"]
[Date "2023.05.21"]
[Round "-"]
[White "RockTroll"]
[Black "Crowded_House"]
[Result "1-0"]
[WhiteElo "2237"]
[BlackElo "1631"]
[TimeControl "300"]
[EndTime "4:54:40 PDT"]
[Termination "RockTroll won by checkmate"]

1. Nf3 {[%clk 0:04:58.3]} 1... e6 {[%clk 0:04:59.5]} 2. g3 {[%clk 0:04:58.2]}
2... d5 {[%clk 0:04:58.9]} 3. Bg2 {[%clk 0:04:58.1]} 3... c6 {[%clk 0:04:58]} 4.
O-O {[%clk 0:04:58]} 4... Bd6 {[%clk 0:04:57.2]} 5. d3 {[%clk 0:04:57.7]} 5...
Nf6 {[%clk 0:04:56.7]} 6. Nbd2 {[%clk 0:04:57.6]} 6... Nbd7 {[%clk 0:04:55.8]}
7. e4 {[%clk 0:04:57.5]} 7... dxe4 {[%clk 0:04:54]} 8. dxe4 {[%clk 0:04:56.5]}
8... O-O {[%clk 0:04:45.8]} 9. Re1 {[%clk 0:04:54.8]} 9... Ne5 {[%clk
0:04:43.1]} 10. Nxe5 {[%clk 0:04:53.3]} 10... Bxe5 {[%clk 0:04:42.3]} 11. Nc4
{[%clk 0:04:51.8]} 11... Bc7 {[%clk 0:04:40.5]} 12. Bg5 {[%clk 0:04:48.2]} 12...
h6 {[%clk 0:04:32.6]} 13. Bxf6 {[%clk 0:04:41.3]} 13... Qxf6 {[%clk 0:04:30.5]}
14. e5 {[%clk 0:04:40.6]} 14... Qe7 {[%clk 0:04:23.2]} 15. Be4 {[%clk
0:04:36.5]} 15... Rb8 {[%clk 0:04:13.3]} 16. Qh5 {[%clk 0:04:34.9]} 16... b5
{[%clk 0:03:55.1]} 17. Ne3 {[%clk 0:04:31.3]} 17... Bb7 {[%clk 0:03:53.4]} 18.
Ng4 {[%clk 0:04:29.9]} 18... f5 {[%clk 0:03:47.6]} 19. exf6 {[%clk 0:04:27.8]}
19... gxf6 {[%clk 0:03:40.2]} 20. Nxh6+ {[%clk 0:04:24.7]} 20... Kh8 {[%clk
0:03:30.8]} 21. Nf7+ {[%clk 0:04:23.9]} 21... Kg7 {[%clk 0:03:26.8]} 22. Qg6#
{[%clk 0:04:23.5]} 1-0

[Event "Live Chess"]
[Site "Chess.com"]
[Date "2023.05.21"]
[Round "-"]
[White "Goblinbasher"]
[Black "MJMykh"]
[Result "0-1"]
[WhiteElo "1213"]
[BlackElo "1159"]
[TimeControl "300"]
[EndTime "4:54:46 PDT"]
[Termination "MJMykh won by resignation"]

1. e4 {[%clk 0:04:56.2]} 1... e5 {[%clk 0:04:58.8]} 2. Nc3 {[%clk 0:04:55]} 2...
Nf6 {[%clk 0:04:54.7]} 3. f4 {[%clk 0:04:52.7]} 3... exf4 {[%clk 0:04:53.6]} 4.
Nf3 {[%clk 0:04:51.5]} 4... Nc6 {[%clk 0:04:52.5]} 5. Bc4 {[%clk 0:04:46.2]}
5... Bb4 {[%clk 0:04:49.2]} 6. O-O {[%clk 0:04:44.2]} 6... Bxc3 {[%clk
0:04:48.2]} 7. bxc3 {[%clk 0:04:42.8]} 7... d6 {[%clk 0:04:47.9]} 8. d4 {[%clk
0:04:41.9]} 8... Bg4 {[%clk 0:04:46.7]} 9. e5 {[%clk 0:04:32.7]} 9... Bxf3
{[%clk 0:04:44.6]} 10. Qxf3 {[%clk 0:04:30.2]} 10... dxe5 {[%clk 0:04:42.3]} 11.
Re1 {[%clk 0:04:25.8]} 11... e4 {[%clk 0:04:38.1]} 12. Qxf4 {[%clk 0:04:21.4]}
12... O-O {[%clk 0:04:34.6]} 13. Rf1 {[%clk 0:04:17.9]} 13... a6 {[%clk
0:04:17.5]} 14. Ba3 {[%clk 0:04:12.6]} 14... Re8 {[%clk 0:04:11.9]} 15. Qe3
{[%clk 0:04:00.3]} 15... Na5 {[%clk 0:04:04.7]} 16. Bb3 {[%clk 0:03:51.3]} 16...
Nxb3 {[%clk 0:04:03.2]} 17. cxb3 {[%clk 0:03:46.9]} 17... b5 {[%clk 0:03:57.6]}
18. Rae1 {[%clk 0:03:42]} 18... Nd5 {[%clk 0:03:50.2]} 19. Qg3 {[%clk
0:03:37.2]} 19... e3 {[%clk 0:03:34.2]} 20. Bc1 {[%clk 0:03:33.1]} 20... Nxc3
{[%clk 0:03:25.2]} 21. Rxe3 {[%clk 0:03:29.1]} 21... Rxe3 {[%clk 0:03:21.3]} 22.
Qxe3 {[%clk 0:03:27.8]} 22... Nd5 {[%clk 0:03:19.9]} 23. Qf2 {[%clk 0:03:24.2]}
23... Nc3 {[%clk 0:03:15.6]} 24. Qxf7+ {[%clk 0:03:22.3]} 24... Kh8 {[%clk
0:03:13.2]} 25. Bb2 {[%clk 0:03:19.1]} 25... Ne2+ {[%clk 0:03:05.5]} 26. Kh1
{[%clk 0:03:15.6]} 26... Nxd4 {[%clk 0:02:58.7]} 27. Rd1 {[%clk 0:03:10.5]}
27... c5 {[%clk 0:02:56.7]} 28. b4 {[%clk 0:03:04.3]} 28... Qf8 {[%clk
0:02:36.8]} 29. Rf1 {[%clk 0:02:56.3]} 29... Qxf7 {[%clk 0:02:33.6]} 30. Rxf7
{[%clk 0:02:55.1]} 30... Kg8 {[%clk 0:02:20]} 31. Rd7 {[%clk 0:02:49.3]} 31...
Ne6 {[%clk 0:02:14.1]} 32. g3 {[%clk 0:02:41.7]} 32... cxb4 {[%clk 0:02:09.9]}
33. h4 {[%clk 0:02:34.5]} 33... Rf8 {[%clk 0:02:02.4]} 34. Kg2 {[%clk
0:02:32.3]} 34... Rf7 {[%clk 0:01:59.8]} 35. Rd5 {[%clk 0:02:26.3]} 35... Nc7
{[%clk 0:01:49.1]} 36. Rd8+ {[%clk 0:02:19.1]} 36... Rf8 {[%clk 0:01:46.6]} 37.
Rxf8+ {[%clk 0:02:15.5]} 37... Kxf8 {[%clk 0:01:45.2]} 38. Kf3 {[%clk
0:02:10.6]} 38... Nd5 {[%clk 0:01:44.6]} 39. g4 {[%clk 0:02:05.8]} 39... Nc3
{[%clk 0:01:41.9]} 40. a3 {[%clk 0:02:01.1]} 40... Nd1 {[%clk 0:01:33.4]} 41.
Ba1 {[%clk 0:01:56.9]} 41... bxa3 {[%clk 0:01:31.8]} 42. Ke4 {[%clk 0:01:53.9]}
42... b4 {[%clk 0:01:30.8]} 43. Kd3 {[%clk 0:01:52.8]} 43... b3 {[%clk
0:01:27.6]} 44. Kc4 {[%clk 0:01:50.4]} 44... b2 {[%clk 0:01:26.6]} 45. Bxb2
{[%clk 0:01:49.5]} 45... axb2 {[%clk 0:01:25.5]} 0-1

[Event "Live Chess"]
[Site "Chess.com"]
[Date "2023.05.21"]
[Round "-"]
[White "mattihelenius2"]
[Black "Long1968"]
[Result "0-1"]
[WhiteElo "491"]
[BlackElo "960"]
[TimeControl "300"]
[EndTime "4:55:00 PDT"]
[Termination "Long1968 won by checkmate"]

1. d4 {[%clk 0:04:58.2]} 1... c5 {[%clk 0:04:54.4]} 2. e4 {[%clk 0:04:52.3]}
2... cxd4 {[%clk 0:04:49.5]} 3. Qxd4 {[%clk 0:04:49]} 3... Nc6 {[%clk
0:04:46.8]} 4. Qd1 {[%clk 0:04:47.3]} 4... Nf6 {[%clk 0:04:40.8]} 5. Nc3 {[%clk
0:04:46.2]} 5... g6 {[%clk 0:04:32.9]} 6. Bg5 {[%clk 0:04:41.4]} 6... Bg7 {[%clk
0:04:29.1]} 7. Nf3 {[%clk 0:04:37.5]} 7... O-O {[%clk 0:04:24.1]} 8. Bd3 {[%clk
0:04:31]} 8... h6 {[%clk 0:04:18.3]} 9. Bxf6 {[%clk 0:04:00.3]} 9... Bxf6 {[%clk
0:04:13.5]} 10. O-O {[%clk 0:03:54.2]} 10... Ne5 {[%clk 0:04:02.2]} 11. Nd5
{[%clk 0:03:41.7]} 11... Bg7 {[%clk 0:03:44.6]} 12. Qd2 {[%clk 0:03:03.7]} 12...
Nxf3+ {[%clk 0:03:31.2]} 13. gxf3 {[%clk 0:02:54.2]} 13... e6 {[%clk 0:03:23]}
14. Nf4 {[%clk 0:02:40.4]} 14... Bxb2 {[%clk 0:03:05.6]} 15. Rae1 {[%clk
0:02:33.8]} 15... Qc7 {[%clk 0:02:53.8]} 16. Qb4 {[%clk 0:02:26.1]} 16... Bc3
{[%clk 0:02:43.4]} 17. Qb3 {[%clk 0:02:09.8]} 17... Bxe1 {[%clk 0:02:36.7]} 18.
Rxe1 {[%clk 0:02:08.2]} 18... Qxf4 {[%clk 0:02:28.6]} 19. Kf1 {[%clk 0:02:04.8]}
19... Qxf3 {[%clk 0:02:03.5]} 20. Be2 {[%clk 0:01:56.5]} 20... Qh1# {[%clk
0:01:51.2]} 0-1